bitfinex-derivatives/quotes_SOLF0:USTF0_20251020
["timestamp","ask_amount","ask_price","bid_price","bid_amount"]
[1760991828856,3.16370838,189.56,189.47,7.5891]
[1760991829249,3.16370838,189.56,189.48,2.84]
[1760991829557,52.08952962,189.56,189.48,2.84]
[1760991829857,4.7479,189.52,189.48,2.84]
[1760991833855,3.16370838,189.53,189.45,2.84]
[1760991834159,8.06952962,189.53,189.42,2.84]
[1760991834457,4.7486,189.49,189.43,7.59]
[1760991834753,4.7486,189.49,189.43,4.75]
[1760991835058,4.7486,189.49,189.44,2.84]
[1760991835358,4.749,189.48,189.44,2.84]
[1760991836652,4.7485,189.5,189.44,2.84]
[1760991836847,7.91220838,189.5,189.44,2.84]
[1760991837248,4.7487,189.49,189.44,7.5898]
[1760991837454,4.7487,189.49,189.45,2.74]
[1760991839153,3.16370838,189.5,189.45,2.74]
[1760991839949,7.91210838,189.5,189.45,2.74]
[1760991840665,9.65382124,189.52,189.46,2.74]
[1760991840863,3.16370838,189.53,189.46,2.74]
[1760991841167,4.90582124,189.54,189.46,2.74]
[1760991841556,4.90582124,189.55,189.49,2.74]
[1760991841862,8.06952962,189.56,189.49,2.74]
[1760991842065,49.84426938,189.57,189.51,2.74]
[1760991842558,4.7469,189.56,189.51,2.74]
[1760991842752,3.16370838,189.55,189.48,4.7487]
[1760991842958,3.16370838,189.55,189.49,2.74]
[1760991843160,10.57096938,189.57,189.5,7.4883]
[1760991843366,10.57096938,189.57,189.5,2.74]
[1760991843566,5.82426938,189.57,189.5,2.74]
[1760991844065,49.84426938,189.57,189.5,2.74]
[1760991844965,4.90582124,189.55,189.47,2.74]
[1760991845167,8.06952962,189.55,189.47,2.74]
[1760991846069,4.7475,189.54,189.47,7.4889]
[1760991846261,3.16370838,189.52,189.47,2.74]
[1760991847470,3.16370838,189.52,189.44,2.74]
[1760991847966,3.16370838,189.49,189.44,7.4897]
[1760991848266,3.16370838,189.49,189.45,2.74]
[1760991849055,7.91240838,189.49,189.45,2.74]
[1760991851457,4.7482,189.51,189.45,2.74]
[1760991851664,48.90582124,189.52,189.46,2.74]
[1760991851665,3.16370838,189.52,189.46,2.74]
[1760991853075,3.16370838,189.52,189.48,2.74]
[1760991853775,12.81672962,189.55,189.49,2.74]
[1760991853970,7.91090838,189.55,189.49,2.74]
[1760991855070,7.91090838,189.55,189.49,7.4884]
[1760991855266,7.91090838,189.55,189.49,4.7484]
[1760991855472,3.16370838,189.55,189.5,2.86]
[1760991855865,10.57096938,189.57,189.5,2.86]
[1760991856262,10.57096938,189.57,189.51,2.86]
[1760991856472,9.65202124,189.59,189.51,2.86]
[1760991857066,4.7465,189.58,189.52,7.6077]
[1760991857372,4.90582124,189.59,189.52,7.6077]
[1760991857876,4.90582124,189.59,189.55,2.86]
[1760991858076,8.06952962,189.6,189.55,2.86]
[1760991858375,4.747,189.56,189.5,4.7482]
[1760991859073,4.747,189.56,189.5,7.6082]
[1760991859266,4.747,189.56,189.55,50.0]
[1760991859971,7.91110838,189.54,189.48,4.7487]
[1760991860372,7.91110838,189.54,189.48,7.6087]
[1760991860570,44.0,189.56,189.5,2.86]
[1760991861267,4.747,189.56,189.5,2.86]
[1760991862077,4.7472,189.55,189.49,4.7485]
[1760991862472,4.7472,189.55,189.49,7.6085]
[1760991862777,2.02472049,189.54,189.49,7.6085]
[1760991863679,2.02472049,189.54,189.5,2.86]
[1760991864480,2.02472049,189.54,189.45,4.7495]
[1760991864670,6.77222049,189.54,189.46,2.86]
[1760991865278,6.77222049,189.54,189.48,2.86]
[1760991865977,6.77222049,189.54,189.48,7.6087]
[1760991866775,6.77222049,189.54,189.48,2.86]
[1760991868375,4.7478,189.53,189.48,2.86]
[1760991868572,2.02472049,189.5,189.43,4.86350502]
[1760991868775,2.02472049,189.45,189.39,4.86350502]
[1760991869081,2.02472049,189.4,189.35,2.74]
[1760991869280,2.02472049,189.38,189.35,2.74]
[1760991869681,2.02472049,189.36,189.35,2.74]
[1760991869883,2.02472049,189.36,189.32,2.74]
[1760991870681,2.02472049,189.36,189.33,2.74]
[1760991872084,2.02472049,189.34,189.3,2.74]
[1760991875481,4.7518,189.37,189.3,2.74]
[1760991875685,2.02472049,189.31,189.27,4.7541]
[1760991875887,2.02472049,189.31,189.28,2.74]
[1760991877493,2.02472049,189.29,189.24,2.74]
[1760991878281,2.02472049,189.33,189.24,2.74]
[1760991878686,2.02472049,189.33,189.26,4.7543]
[1760991878987,2.02472049,189.31,189.27,2.74]
[1760991882487,2.02472049,189.33,189.27,2.74]
[1760991882686,2.02472049,189.33,189.28,2.74]
[1760991884492,4.90582124,189.47,189.29,1.06]
[1760991884689,2.02472049,189.4,189.3,2.74]
[1760991885201,2.02472049,189.38,189.3,2.74]
[1760991885396,4.7506,189.42,189.33,7.4924]
[1760991885691,2.02472049,189.38,189.34,2.74]
[1760991885899,2.02472049,189.41,189.34,2.74]
[1760991887897,2.02472049,189.41,189.35,2.74]
[1760991890510,2.02472049,189.39,189.32,4.7528]
[1760991890806,2.02472049,189.39,189.3,2.74]
[1760991891993,6.77542049,189.41,189.35,2.74]
[1760991892998,6.77542049,189.41,189.35,7.492]
[1760991893400,2.02472049,189.41,189.35,7.492]
[1760991894402,6.77542049,189.41,189.35,7.492]
[1760991894594,9.4966,189.51,189.31,2.02472049]
[1760991894595,2.02472049,189.39,189.32,4.7526]
[1760991894993,2.02472049,189.37,189.32,4.7526]
[1760991895203,2.02472049,189.37,189.33,2.74]
[1760991895805,4.7507,189.41,189.3,2.02472049]
[1760991896106,2.02472049,189.4,189.31,2.74]
[1760991897110,2.02472049,189.42,189.33,2.74]
[1760991897297,2.04472049,189.42,189.33,2.74]
[1760991897504,4.7497,189.45,189.38,2.66]
[1760991897703,2.04472049,189.43,189.38,2.66]
[1760991899516,0.02,189.43,189.38,7.4112]
[1760991899706,2.02472049,189.42,189.38,7.4112]
[1760991900220,2.02472049,189.42,189.38,4.7512]
[1760991900424,2.02472049,189.42,189.39,2.66]
[1760991900625,2.04472049,189.42,189.39,2.66]
[1760991901426,0.02,189.45,189.41,2.66]
[1760991901621,0.02,189.43,189.4,4.7509]
[1760991901821,0.02,189.41,189.34,2.66]
[1760991902022,2.02472049,189.4,189.34,2.66]
[1760991903127,2.02472049,189.4,189.37,2.66]
[1760991903824,2.02472049,189.38,189.36,4.7518]
[1760991904127,2.02472049,189.4,189.37,7.4114]
[1760991904426,2.02472049,189.42,189.38,2.66]
[1760991906231,2.02472049,189.42,189.39,2.66]
[1760991906528,2.02472049,189.42,189.4,2.66]
[1760991906926,2.02472049,189.44,189.4,2.66]
[1760991907123,2.02472049,189.44,189.35,2.66]
[1760991907522,2.02472049,189.42,189.39,4.7511]
[1760991907718,2.02472049,189.42,189.39,7.4111]
[1760991908427,2.02472049,189.42,189.4,2.66]
[1760991910242,2.04472049,189.42,189.39,4.7511]
[1760991910533,2.04472049,189.42,189.37,2.66]
[1760991910534,2.02472049,189.4,189.38,2.66]
[1760991910927,2.02472049,189.4,189.39,2.66]
[1760991911132,2.02472049,189.42,189.39,2.66]
[1760991911531,0.02,189.44,189.39,2.66]
[1760991911732,2.02472049,189.42,189.39,2.66]
[1760991911933,2.02472049,189.42,189.39,7.4109]
[1760991912135,2.02472049,189.42,189.4,2.66]
[1760991914239,2.02472049,189.42,189.41,2.66]
[1760991914432,2.02472049,189.42,189.4,4.7507]
[1760991916341,2.02472049,189.42,189.39,2.93]
[1760991917734,2.02472049,189.4,189.36,4.7518]
[1760991918036,2.02472049,189.4,189.36,7.6818]
[1760991918440,2.02472049,189.4,189.36,2.93]
[1760991918842,2.02472049,189.4,189.31,4.86350502]
[1760991918843,2.02472049,189.38,189.33,2.93]
[1760991919039,2.02472049,189.38,189.34,7.6823]
[1760991919737,2.02472049,189.36,189.33,2.93]
[1760991921242,2.02472049,189.36,189.32,4.7528]
[1760991921437,2.02472049,189.36,189.32,7.6828]
[1760991921638,2.02472049,189.34,189.3,7.6832]
[1760991921941,2.02472049,189.34,189.31,2.93]
[1760991922141,2.02472049,189.34,189.32,2.93]
[1760991924840,3.16998392,189.37,189.32,2.93]
[1760991925550,3.16998392,189.37,189.29,2.93]
[1760991926251,3.16998392,189.37,189.31,4.753]
[1760991926744,3.16998392,189.37,189.32,7.6827]
[1760991926937,3.16998392,189.37,189.33,2.93]
[1760991927139,4.7509,189.4,189.33,2.93]
[1760991928049,3.16998392,189.41,189.33,2.93]
[1760991928937,3.16998392,189.41,189.35,4.7519]
[1760991929337,3.16998392,189.41,189.35,7.6119]
[1760991929548,3.16998392,189.41,189.35,2.86]
[1760991931041,4.7504,189.42,189.36,4.7516]
[1760991932445,4.7504,189.42,189.37,4.7515]
[1760991932646,4.7504,189.42,189.37,7.6115]
[1760991934843,3.16998392,189.42,189.32,4.86350502]
[1760991935153,8.07580516,189.42,189.31,2.86]
[1760991935846,41.97580516,189.42,189.31,2.86]
[1760991936046,4.7513,189.39,189.33,4.7525]
[1760991945058,4.7514,189.38,189.33,7.6125]
[1760991947863,4.7514,189.38,189.33,2.86]
[1760991948062,4.7517,189.37,189.33,2.86]
[1760991948359,47.16998392,189.39,189.29,4.7534]
[1760991948562,47.16998392,189.39,189.3,2.86]
[1760991948758,47.16998392,189.39,189.29,4.7534]
[1760991948966,44.0,189.38,189.29,7.6134]
[1760991949158,8.07580516,189.39,189.29,7.6134]
[1760991949465,4.7524,189.34,189.29,4.7534]
[1760991949651,4.7524,189.34,189.3,2.86]
[1760991951566,4.7527,189.33,189.3,2.86]
[1760991952663,4.7527,189.33,189.27,4.754]
[1760991952872,4.7527,189.33,189.27,7.614]
[1760991953164,4.7529,189.32,189.28,2.86]
[1760991954466,30.54998392,189.36,189.28,2.86]
[1760991954467,4.7525,189.34,189.28,2.86]
[1760991954664,30.54998392,189.36,189.28,2.86]
[1760991954854,3.16998392,189.36,189.28,2.86]
[1760991956161,44.0,189.37,189.29,2.86]
[1760991956868,44.0,189.39,189.3,2.86]
[1760991957663,48.90582124,189.39,189.3,2.86]
[1760991957963,4.7523,189.35,189.3,2.86]
[1760991959356,4.7523,189.35,189.31,2.64]
[1760991959561,4.90582124,189.41,189.31,2.64]
[1760991959866,8.07580516,189.42,189.31,2.64]
[1760991960070,3.16998392,189.39,189.31,7.393]
[1760991960669,4.7517,189.37,189.31,2.64]
[1760991962165,4.7517,189.37,189.31,7.393]
[1760991963665,46.81580516,189.39,189.31,7.393]
[1760991963870,4.752,189.36,189.31,7.393]
[1760991964059,4.752,189.36,189.31,4.753]
[1760991964362,4.752,189.36,189.32,2.64]
[1760991964766,4.7522,189.35,189.29,4.7535]
[1760991967471,4.753,189.32,189.24,7.50350502]
[1760991967676,4.753,189.32,189.24,2.64]
[1760991968068,4.7524,189.34,189.26,2.64]
[1760991969067,4.7524,189.34,189.28,2.64]
[1760991975075,4.7724,189.34,189.28,2.64]
[1760991976982,0.02,189.33,189.28,2.64]
[1760991977587,0.02,189.33,189.28,7.3938]
[1760991977883,4.7724,189.34,189.29,2.75]
[1760991978079,0.02,189.34,189.29,7.5035]
[1760991978272,0.02,189.34,189.3,2.75]
[1760991980480,4.7725,189.34,189.3,2.75]
[1760991980685,3.18998392,189.33,189.27,7.504]
[1760991980985,3.18998392,189.33,189.27,4.754]
[1760991981289,3.18998392,189.33,189.28,2.75]
[1760991981488,0.02,189.32,189.28,2.75]
[1760991982492,0.02,189.32,189.25,7.5046]
[1760991982992,4.7532,189.31,189.25,4.7546]
[1760991983191,4.7732,189.31,189.26,2.75]
[1760991984694,2.02985436,189.3,189.26,2.75]
[1760991985993,2.04985436,189.3,189.26,2.75]
[1760991986385,6.78335436,189.3,189.26,2.75]
[1760991986594,0.02,189.29,189.26,2.75]
[1760991986792,6.80335436,189.3,189.26,2.75]
[1760991988200,4.90582124,189.35,189.27,1.06]
[1760991988388,4.69167076,189.38,189.29,2.02985436]
[1760991988588,25.7,189.46,189.33,2.73]
[1760991988889,2.02985436,189.43,189.34,2.73]
[1760991989095,2.02985436,189.43,189.37,2.73]
[1760991989486,2.02985436,189.41,189.37,2.73]
[1760991989682,2.02985436,189.42,189.37,2.73]
[1760991990488,46.06985436,189.44,189.37,2.73]
[1760991991002,2.02985436,189.44,189.37,2.73]
[1760991991391,2.02985436,189.44,189.38,2.73]
[1760991993794,44.02,189.45,189.38,2.73]
[1760991993985,44.02,189.45,189.39,2.73]
[1760991994793,143.43429973,189.52,189.41,2.73]
[1760991995001,2.02985436,189.5,189.41,2.73]
[1760991996093,2.02985436,189.5,189.42,7.4801]
[1760991996401,2.02985436,189.49,189.43,2.73]
[1760991997704,44.02,189.51,189.43,2.73]
[1760991998002,46.04985436,189.51,189.44,2.73]
[1760991998391,2.02985436,189.54,189.46,2.73]
[1760991998701,46.04985436,189.54,189.46,2.73]
[1760991999302,2.02985436,189.55,189.48,2.73]
[1760991999499,44.02,189.56,189.48,2.73]
[1760991999698,2.02985436,189.54,189.48,2.73]
[1760992000903,2.02985436,189.52,189.48,2.73]
[1760992002506,2.02985436,189.53,189.48,2.73]
[1760992003407,6.77745436,189.53,189.48,2.73]
[1760992003707,2.02985436,189.51,189.45,2.73]
[1760992004306,44.02,189.55,189.42,2.02985436]
[1760992004307,2.02985436,189.49,189.42,4.7502]
[1760992004606,2.02985436,189.49,189.42,7.4802]
[1760992004807,44.02,189.55,189.42,2.73]
[1760992004808,2.02985436,189.48,189.42,2.73]
[1760992006905,2.02985436,189.48,189.43,2.73]
[1760992008500,2.02985436,189.48,189.44,2.73]
[1760992009510,2.02985436,189.5,189.44,2.73]
[1760992009807,9.4926,189.59,189.43,2.73]
[1760992010007,2.02985436,189.53,189.45,2.73]
[1760992010213,2.02985436,189.51,189.45,2.73]
[1760992010412,2.02985436,189.51,189.45,7.4795]
[1760992010605,2.02985436,189.51,189.46,2.73]
[1760992011606,2.02985436,189.49,189.46,2.73]
[1760992015012,2.02985436,189.49,189.43,7.48]
[1760992015211,2.02985436,189.47,189.43,7.48]
[1760992015414,2.02985436,189.47,189.44,2.73]
[1760992017115,6.77905436,189.47,189.44,2.73]
[1760992017411,2.02985436,189.45,189.41,2.92]
[1760992018921,41.2,189.55,189.5,8.82134564]
[1760992019123,2.02985436,189.51,189.5,2.725e-05]
[1760992019317,2.02985436,189.51,189.41,2.92]
[1760992019516,2.02985436,189.45,189.41,2.92]
[1760992020623,2.02985436,189.49,189.41,2.92]
[1760992021010,2.02985436,189.47,189.43,2.92]
[1760992022521,2.02985436,189.45,189.43,2.92]
[1760992023324,2.02985436,189.45,189.41,2.92]
[1760992024213,4.7492,189.47,189.41,2.92]
[1760992027024,2.02985436,189.46,189.38,6.78105436]
[1760992027223,2.02985436,189.46,189.38,7.6712]
[1760992027421,2.02985436,189.46,189.39,2.92]
[1760992028529,9.4942,189.56,189.39,2.92]
[1760992028530,2.02985436,189.47,189.39,2.92]
[1760992028930,4.7495,189.46,189.39,2.92]
[1760992029433,4.7495,189.46,189.4,2.92]
[1760992030735,2.02985436,189.47,189.4,4.7507]
[1760992030928,2.02985436,189.47,189.4,7.6707]
[1760992032030,2.02985436,189.49,189.41,2.02985436]
[1760992032227,2.02985436,189.49,189.42,2.92]
[1760992032929,6.77855436,189.49,189.42,7.6702]
[1760992033131,2.02985436,189.49,189.43,2.92]
[1760992033331,9.4942,189.56,189.4,2.02985436]
[1760992033332,2.02985436,189.47,189.4,2.92]
[1760992035036,4.7495,189.46,189.41,2.92]
[1760992036233,4.7497,189.45,189.41,2.92]
[1760992036638,2.02985436,189.42,189.41,2.92]
[1760992039639,2.02985436,189.44,189.41,2.92]
[1760992042440,2.02985436,189.46,189.41,2.92]
[1760992042943,4.7492,189.47,189.41,2.92]
[1760992043545,6.77925436,189.46,189.41,2.92]
[1760992043748,2.02985436,189.46,189.38,2.87]
[1760992044348,6.77925436,189.46,189.39,4.751]
[1760992044648,6.77925436,189.46,189.4,2.87]
[1760992045642,4.7494,189.46,189.41,2.87]
[1760992045842,4.7487,189.49,189.41,2.87]
[1760992046647,4.7487,189.49,189.42,2.87]
[1760992046844,4.7487,189.49,189.4,2.87]
[1760992047642,4.7487,189.49,189.45,2.65]
[1760992049056,4.7483,189.51,189.45,2.65]
[1760992049653,4.7484,189.5,189.45,2.65]
[1760992052366,4.7484,189.5,189.45,4.7495]
[1760992052569,4.748,189.52,189.46,2.65]
[1760992052861,43.96,189.55,189.46,7.3993]
[1760992054968,4.748,189.52,189.46,7.3993]
[1760992058766,4.7482,189.51,189.46,4.7493]
[1760992058971,4.7482,189.51,189.47,2.65]
[1760992060067,0.91862997,189.53,189.48,2.65]
[1760992060269,6.57429973,189.58,189.48,2.65]
[1760992060461,5.66526026,189.57,189.48,2.65]
[1760992060661,5.66526026,189.57,189.52,2.65]
[1760992060973,6.57429973,189.59,189.52,2.65]
[1760992060974,43.96,189.59,189.52,2.65]
[1760992061175,0.91832696,189.6,189.52,2.65]
[1760992061375,44.87832696,189.6,189.52,2.65]
[1760992061978,4.7467,189.57,189.52,2.65]
[1760992062476,43.96,189.59,189.52,2.65]
[1760992062865,43.96,189.59,189.47,4.89912571]
[1760992062866,6.57429973,189.65,189.54,3.16551654]
[1760992063071,6.57429973,189.65,189.46,6.49187064]
[1760992063072,6.57429973,189.73,189.61,2.65]
[1760992063268,0.91791517,189.72,189.64,2.65]
[1760992063465,0.91791517,189.72,189.51,9.75929344]
[1760992063466,0.91791517,189.72,189.67,2.65]
[1760992063665,43.96,189.75,189.67,2.65]
[1760992064074,43.96,189.75,189.64,2.65]
[1760992064580,3.16551654,189.74,189.64,2.65]
[1760992065077,4.7436,189.7,189.61,2.65]
[1760992065465,4.7439,189.68,189.61,2.65]
[1760992067573,48.6834,189.7,189.61,2.65]
[1760992067780,43.94,189.71,189.62,2.65]
[1760992068877,4.7429,189.72,189.62,2.65]
[1760992069078,48.6829,189.72,189.62,2.65]
[1760992069674,7.90781654,189.75,189.64,2.65]
[1760992069878,26.20551654,189.75,189.64,2.65]
[1760992070579,23.04,189.75,189.66,2.65]
[1760992070783,36.08,189.75,189.66,2.65]
[1760992070981,44.85757633,189.76,189.66,2.65]
[1760992071172,0.91757633,189.76,189.66,2.65]
[1760992072084,5.65967633,189.76,189.66,2.65]
[1760992072882,4.7424,189.74,189.66,2.65]
[1760992075385,5.65947633,189.76,189.66,2.65]
[1760992075583,49.57947633,189.76,189.66,2.65]
[1760992077584,4.7423,189.75,189.66,2.65]
[1760992078183,44.83757633,189.76,189.67,2.82]
[1760992079282,0.91757633,189.76,189.67,2.82]
[1760992079484,0.91757633,189.76,189.68,2.82]
[1760992079878,0.91757633,189.76,189.68,7.5637]
[1760992080190,0.91757633,189.76,189.69,2.82]
[1760992081179,7.90711654,189.77,189.69,2.82]
[1760992081377,3.16551654,189.79,189.7,2.82]
[1760992081882,47.08551654,189.79,189.7,2.82]
[1760992082080,0.91739491,189.8,189.7,2.82]
[1760992082282,4.08291145,189.8,189.7,2.82]
[1760992082790,3.16551654,189.8,189.7,2.82]
[1760992082984,3.16551654,189.81,189.7,2.82]
[1760992083186,4.7408,189.81,189.73,2.82]
[1760992083377,7.90631654,189.81,189.73,2.82]
[1760992085797,7.90631654,189.81,189.74,2.82]
[1760992088194,47.06551654,189.82,189.75,2.82]
[1760992088878,3.16551654,189.82,189.76,2.82]
[1760992089189,2.16551654,189.82,189.76,2.82]
[1760992089988,2.16551654,189.82,189.77,2.82]
[1760992091985,4.74,189.84,189.77,2.82]
[1760992092190,3.16551654,189.82,189.77,2.82]
[1760992093901,3.16551654,189.82,189.74,7.5622]
[1760992094394,47.06551654,189.82,189.75,7.562]
[1760992094788,3.16551654,189.82,189.76,2.82]
[1760992096099,3.16551654,189.79,189.73,7.5526]
[1760992096693,3.16551654,189.79,189.74,2.81]
[1760992097796,3.16551654,189.75,189.64,2.81]
[1760992098003,3.16551654,189.72,189.64,2.81]
[1760992098206,3.16551654,189.69,189.64,2.81]
[1760992099297,3.16551654,189.69,189.56,2.81]
[1760992100601,4.744,189.68,189.61,4.7454]
[1760992100902,3.16551654,189.66,189.62,2.81]
[1760992106905,2.0226436,189.64,189.62,2.81]
[1760992108199,2.0226436,189.64,189.61,4.7455]
[1760992108396,2.0226436,189.64,189.61,7.4555]
[1760992111907,2.0226436,189.66,189.62,7.4552]
[1760992112107,2.0226436,189.71,189.63,2.71]
[1760992112704,2.0226436,189.71,189.65,4.7445]
[1760992112904,2.0226436,189.69,189.66,2.71]
[1760992113504,2.04,189.76,189.7,4.7432]
[1760992113705,2.0226436,189.75,189.71,2.71]
[1760992114015,2.04,189.72,189.65,2.71]
[1760992114317,4.0626436,189.7,189.66,7.4542]
[1760992114811,4.0626436,189.7,189.67,2.71]
[1760992114812,2.0226436,189.7,189.67,2.71]
[1760992115207,2.0226436,189.7,189.68,2.71]
[1760992116305,2.0226436,189.7,189.65,7.4545]
[1760992116502,2.04,189.69,189.65,7.4545]
[1760992116907,2.04,189.69,189.65,2.71]
[1760992117116,4.0626436,189.68,189.63,7.455]
[1760992117617,4.0626436,189.68,189.64,2.71]
[1760992118320,2.0226436,189.68,189.63,4.745]
[1760992118509,2.04,189.67,189.63,4.745]
[1760992119122,2.04,189.67,189.61,7.4555]
[1760992124021,2.04,189.65,189.61,2.71]
[1760992126127,6.784,189.68,189.61,2.71]
[1760992126311,50.744,189.68,189.61,2.71]
[1760992126723,6.784,189.68,189.61,2.71]
[1760992126908,50.744,189.68,189.61,2.71]
[1760992127417,50.744,189.68,189.62,2.71]
[1760992127719,46.0,189.68,189.62,2.71]
[1760992127921,2.04,189.68,189.62,7.4553]
[1760992128124,46.0,189.68,189.62,7.4553]
[1760992131815,2.04,189.68,189.62,7.4553]
[1760992132014,45.98,189.67,189.63,2.71]
[1760992132218,2.04,189.66,189.63,2.71]
[1760992133225,2.04,189.7,189.63,2.71]
[1760992133423,2.04,189.7,189.64,2.0226436]
[1760992133620,2.04,189.7,189.65,2.71]
[1760992135026,4.7435,189.7,189.64,4.7448]
[1760992135328,2.04,189.69,189.64,7.4548]
[1760992135522,2.04,189.69,189.65,2.71]
[1760992135715,6.7835,189.7,189.65,2.71]
[1760992135917,2.04,189.69,189.65,2.71]
[1760992136936,2.04,189.69,189.62,4.7453]
[1760992136937,4.0626436,189.69,189.62,4.7453]
[1760992137234,2.04,189.68,189.62,7.4553]
[1760992137723,2.04,189.68,189.62,2.71]
[1760992137922,43.94,189.71,189.57,4.89912571]
[1760992137923,4.7457,189.62,189.57,4.89912571]
[1760992138139,2.0226436,189.59,189.53,2.89]
[1760992138335,2.0226436,189.59,189.49,4.89912571]
[1760992138336,2.03,189.57,189.49,2.89]
[1760992138629,2.03,189.54,189.45,7.78912571]
[1760992138818,2.03,189.52,189.44,4.89912571]
[1760992139023,2.03,189.48,189.42,4.89912571]
[1760992139221,46.05,189.47,189.41,2.89]
[1760992139527,2.03,189.45,189.37,2.89]
[1760992139724,2.03,189.45,189.33,2.89]
[1760992140121,2.03,189.44,189.33,2.89]
[1760992140326,4.0526436,189.46,189.36,2.0226436]
[1760992140518,46.11,189.45,189.37,4.9126436]
[1760992140722,46.11,189.45,189.37,2.89]
[1760992140936,48.1326436,189.45,189.37,2.89]
[1760992142426,2.0226436,189.43,189.37,2.89]
[1760992143132,44.1,189.44,189.33,2.89]
[1760992143133,2.0226436,189.39,189.33,2.89]
[1760992143335,2.03,189.41,189.33,2.89]
[1760992143537,2.0226436,189.37,189.33,2.89]
[1760992148140,2.0226436,189.37,189.34,2.89]
[1760992152049,2.03,189.4,189.34,2.89]
[1760992152245,4.0526436,189.36,189.3,2.89]
[1760992152431,2.0226436,189.32,189.22,2.0226436]
[1760992152740,2.0226436,189.31,189.22,2.89]
[1760992153142,2.0226436,189.31,189.28,2.89]
[1760992153550,36.28,189.41,189.15,44.08]
[1760992153551,4.0526436,189.29,189.24,2.89]
[1760992154143,2.0226436,189.29,189.24,2.89]
[1760992154933,2.0226436,189.29,189.15,44.08]
[1760992154934,2.03,189.32,189.26,2.89]
[1760992155136,2.0226436,189.3,189.26,2.89]
[1760992156539,2.0226436,189.3,189.27,4.7542]
[1760992157042,2.0226436,189.28,189.27,4.7542]
[1760992157642,2.0226436,189.28,189.25,4.7547]
[1760992157944,4.0626436,189.28,189.23,2.9]
[1760992158639,4.0626436,189.28,189.24,4.7547]
[1760992158836,4.0626436,189.28,189.24,7.6547]
[1760992159047,2.0226436,189.26,189.24,7.6547]
[1760992168648,2.04,189.28,189.24,2.9]
[1760992168847,2.04,189.28,189.25,4.7546]
[1760992170842,2.05,189.31,189.26,2.67]
[1760992171643,2.05,189.31,189.3,4.7535]
[1760992171849,2.05,189.36,189.3,4.7535]
[1760992174751,2.05,189.36,189.28,2.67]
[1760992175949,2.05,189.36,189.29,4.7535]
[1760992178654,2.05,189.35,189.29,4.7535]
[1760992178860,2.05,189.35,189.29,7.4235]
[1760992182363,2.05,189.33,189.29,7.4235]
[1760992182558,2.05,189.33,189.3,2.67]
[1760992183058,4.84600045,189.35,189.3,2.67]
[1760992183260,2.05,189.34,189.3,2.67]
[1760992183459,6.89600045,189.34,189.3,2.67]
[1760992184160,2.05,189.33,189.3,2.67]
[1760992184563,2.05,189.33,189.29,4.7535]
[1760992184750,6.89600045,189.33,189.29,4.7535]
[1760992184953,2.05,189.32,189.29,7.4235]
[1760992187554,6.89600045,189.32,189.29,7.4235]
[1760992192763,2.05,189.31,189.26,7.4243]
[1760992192961,2.05,189.31,189.27,2.67]
[1760992193958,2.05,189.31,189.27,4.7541]
[1760992194161,2.05,189.31,189.28,2.67]
[1760992199875,2.05,189.31,189.28,7.4238]
[1760992200166,2.05,189.31,189.26,2.92]